Cogmind - Beta 16.1 @@@ ROGUE MODE // 2026.02.15 @ 15:20:53 // Winter2019/RPGLIKE Player: badjay Result: Destroyed by Y-54 Guardian with Gatling Laser Performance ------------- Evolutions (3) 1500 Regions Visited (6) 1200 Robots Destroyed (52) 260 Value Destroyed (1724) 1724 Prototype IDs (18) 360 Alien Tech Used (0) 0 Bonus (37) 37 TOTAL SCORE: 5081 Bonus ------- High Alert Combat Kills 37 Cogmind --------- Core Integrity 0/600 Matter 300/300 Energy 310/310 System Corruption 5% Temperature Cool (18) Movement Hovering (60) Location -7/Storage Parts ------- > --- POWER (1) -------- Heavy Deuterium Engine > --- PROPULSION (2) --- Gravmag System > --- UTILITY (5) ------ Improved Melee Analysis Suite Improved Melee Analysis Suite Improved Melee Analysis Suite Core Analyzer > --- WEAPON (3) ------- Impact Mace Spear Spear > --- INVENTORY (0) ---- (None) Peak State ------------ > --- POWER ------------ Heavy Deuterium Engine > --- PROPULSION ------- Xenon Bombardment Thruster Xenon Bombardment Thruster > --- UTILITY ---------- Improved Melee Analysis Suite Improved Melee Analysis Suite Improved Melee Analysis Suite Core Analyzer Reaction Control System > --- WEAPON ----------- Spear Spear Spear > --- INVENTORY -------- (None) [Rating: 44] Favorites ----------- Power Cooled Ion Engine Engine Cooled Ion Engine Propulsion Xenon Bombardment Thruster Hover Unit Gravmag System Flight Unit Xenon Bombardment Thruster Utility Improved Melee Analysis Suite Device Reaction Control System Processor Improved Melee Analysis Suite Weapon Heavy Hammer Energy Gun EM Pulse Gun Impact Weapon Heavy Hammer Slashing Weapon Great Axe Piercing Weapon Spear Build | -11 -10 -10 -9 -8 -7 -7 ------- Run | Yrd Mat Min Mat Mat Fac Sto Slots Evolved 7 | . 2 . . . 4 1 Power . | . . . . . . . Propulsion 1 | . 1 . . . . . Utility 4 | . . . . . 3 1 Weapon 2 | . 1 . . . 1 . Parts Attached 30 | . 5 . 5 4 7 9 Power 5 | . 1 . 1 . 1 2 Engine 5 | . 1 . 1 . 1 2 Core . | . . . . . . . Reactor . | . . . . . . . Propulsion 7 | . 2 . 1 3 . 1 Treads . | . . . . . . . Leg . | . . . . . . . Wheel . | . . . . . . . Hover 1 | . . . . . . 1 Flight 6 | . 2 . 1 3 . . Utility 6 | . . . 1 . 4 1 Device 1 | . . . . . . 1 Storage . | . . . . . . . Processor 5 | . . . 1 . 4 . Hackware . | . . . . . . . Protection . | . . . . . . . Artifact . | . . . . . . . Weapon 12 | . 2 . 2 1 2 5 Energy Gun 2 | . 2 . . . . . Energy Cannon . | . . . . . . . Ballistic Gun . | . . . . . . . Ballistic Cannon . | . . . . . . . Launcher . | . . . . . . . Special Weapon . | . . . . . . . Impact Weapon 4 | . . . 2 . . 2 Slashing Weapon 3 | . . . . 1 2 . Piercing Weapon 3 | . . . . . . 3 Special Melee Weapon . | . . . . . . . Unidentified Prototypes 4 | . . . . . 2 2 Parts Lost 4 | . . . . . 1 3 Power . | . . . . . . . Propulsion 3 | . . . . . 1 2 Utility 1 | . . . . . . 1 Weapon . | . . . . . . . Highest Loss Streak 2 | . . . . . 1 2 To Critical Strikes . | . . . . . . . Average Backups . | . . . . . . . Power . | . . . . . . . Propulsion . | . . . . . . . Utility . | . . . . . . . Weapon . | . . . . . . . Tool/Special . | . . . . . . . Unused Backups . | . . . . . . . Power . | . . . . . . . Propulsion . | . . . . . . . Utility . | . . . . . . . Weapon . | . . . . . . . Tool/Special . | . . . . . . . Average Slot Usage (%) 90 | . 50 83 89 100 99 86 Engine 11 | . 8 16 16 16 12 9 Hover 1 | . . . . . . 3 Flight 21 | . 17 33 33 33 24 10 Processor 28 | . . . 6 16 36 37 Energy Gun 4 | . 24 33 22 . . . Impact Weapon 10 | . . . 10 28 12 5 Slashing Weapon 6 | . . . . 4 12 3 Piercing Weapon 4 | . . . . . . 15 Peak Build Rating 44 | . 5 5 11 17 37 44 Average Rating 25 | . 2 5 8 11 28 38 On Entrance 10 | . . 5 5 11 17 37 Avg Prop Armor Cover (%) . | . . . . . . . Naked Turns 11 | . 11 . . . . . Heaviest Build 19 | . 7 7 14 14 18 19 Greatest Support 24 | 3 8 8 18 22 24 24 Greatest Overweight (x) 1 | . 1 . . . . 1 Average Overweight (x) . | . . . . . . . Largest Inventory Capacity . | . . . . . . . Average Capacity . | . . . . . . . Most Carried . | . . . . . . . Average Carried . | . . . . . . . Final Capacity . | . . . . . . . Final Carried . | . . . . . . . Class Distribution -------------------- 48% | Hacker-Gladiator 38% | Gladiator 12% | Mutant Dominant Class ---------------- Mutant | -10/Materials Mutant | -10/Mines Gladiator | -9/Materials Gladiator | -8/Materials Gladiator | -7/Factory Hacker-Gladiator | -7/Storage Resources | -11 -10 -10 -9 -8 -7 -7 ----------- Run | Yrd Mat Min Mat Mat Fac Sto Matter Collected 602 | 200 . . 100 33 136 133 Remotely . | . . . . . . . Salvage Created 1708 | . . . 39 178 659 832 Parts 76 | . 7 . 5 5 16 43 Haulers Intercepted 6 | . . . . . 3 3 Recyclers Shooed . | . . . . . . . Parts Field Recycled . | . . . . . . . Retrieved Matter . | . . . . . . . Parts Self-Destructed . | . . . . . . . Prevented . | . . . . . . . Parts Restored . | . . . . . . . Kills | -11 -10 -10 -9 -8 -7 -7 ------- Run | Yrd Mat Min Mat Mat Fac Sto Combat Hostiles Destroyed 36 | . 3 . 2 5 9 17 Melee 21 | . . . 1 4 5 11 Guns 1 | . 1 . . . . . AOE 2 | . 2 . . . . . Classes Destroyed 7 | . 1 . 1 2 3 . Hauler 6 | . . . . . 3 3 Watcher 10 | . . . . 3 6 1 Swarmer 11 | . 3 . . 4 . 4 Grunt 10 | . . . 2 . 4 4 Sentry 11 | . . . . 1 3 7 Hunter 1 | . . . . . 1 . Programmer 3 | . . . . . 1 2 Best Kill Streak 4 | . 3 . 2 3 3 4 Combat Bots Only 4 | . 3 . 2 3 2 4 Max Kills in Single Turn 2 | . 2 . 1 1 1 1 Gunslinging . | . . . . . . . Exploded 2 | . 2 . . . . . Melee 1 | . . . 1 1 1 1 Uniques/NPCs Destroyed . | . . . . . . . Combat | -11 -10 -10 -9 -8 -7 -7 -------- Run | Yrd Mat Min Mat Mat Fac Sto Hostile Shots Fired 549 | . 9 3 8 40 137 352 Missed 269 | . 4 2 5 19 58 181 Hits 280 | . 5 1 3 21 79 171 Projectile 280 | . 5 1 3 21 79 171 Critical Strikes 4 | . . . . . 3 1 Damage Taken 2466 | . 38 6 37 192 733 1460 Core 2091 | . 36 4 28 154 627 1242 Absorbed by Shields . | . . . . . . . Redirected to Core 1157 | . 6 4 28 125 331 663 Core Remaining (%) 94 | 100 . 99 98 82 . . Volleys Fired 4 | . 4 . . . . . Largest 1 | . 1 . . . . . Hottest 40 | . 40 . . . . . Shots Fired 4 | . 4 . . . . . Gun 4 | . 4 . . . . . Cannon . | . . . . . . . Launcher . | . . . . . . . Special . | . . . . . . . Kinetic . | . . . . . . . Thermal . | . . . . . . . Explosive . | . . . . . . . Electromagnetic 4 | . 4 . . . . . Robot Hit Streak 1 | . 1 . . . . . Robot Miss Streak 3 | . 3 . . . . . Penetration Max . | . . . . . . . Secondary Targets . | . . . . . . . Shots Hit Robots 128 | . 1 . 3 12 52 60 Core Hits 38 | . 3 . 1 3 12 19 Critical Kills . | . . . . . . . Critical Parts Destroyed 15 | . . . 1 4 8 2 Critical Strikes 20 | . . . 1 4 10 5 Smash 16 | . . . 1 4 9 2 Sever 2 | . . . . . 1 1 Impale 2 | . . . . . . 2 Melee Attacks 152 | . . . 3 18 56 75 Impact 93 | . . . 3 18 45 27 Slashing 14 | . . . . . 11 3 Piercing 45 | . . . . . . 45 Sneak Attacks 10 | . . . . . 6 4 Combat Hostiles . | . . . . . . . Follow-up Attacks 20 | . . . . 1 9 10 Damage Inflicted 5642 | . 94 . 109 486 2424 2529 Guns 24 | . 24 . . . . . Cannons . | . . . . . . . Explosions 70 | . 70 . . . . . Melee 5548 | . . . 109 486 2424 2529 Ramming . | . . . . . . . Kinetic . | . . . . . . . Thermal 70 | . 70 . . . . . Explosive . | . . . . . . . Electromagnetic 24 | . 24 . . . . . Impact 3629 | . . . 109 486 1979 1055 Slashing 551 | . . . . . 445 106 Piercing 1368 | . . . . . . 1368 Highest Corruption 5 | . 2 2 . . . 5 Average Corruption 4 | . 2 2 . . . 4 Corruption Purged . | . . . . . . . Corruption Blocked . | . . . . . . . Effects 11 | . . 1 . . . 10 Matter Fused 3 | . . . . . . 3 Heat Flow Errors 1 | . . . . . . 1 Energy Discharges 1 | . . . . . . 1 Parts Rejected 1 | . . . . . . 1 Data Loss (minor) 4 | . . . . . . 4 Alerts 1 | . . 1 . . . . Overload Shots . | . . . . . . . Overflow Damage 1239 | . . . 26 210 701 302 Projectiles . | . . . . . . . Explosions . | . . . . . . . Melee 1239 | . . . 26 210 701 302 Knockbacks 13 | . . . . 3 9 1 Impact 12 | . . . . 3 9 . Kinetic . | . . . . . . . Secondary 1 | . . . . . . 1 Self-Inflicted Damage . | . . . . . . . Shots . | . . . . . . . Rammed . | . . . . . . . Targets Rammed . | . . . . . . . Kicked . | . . . . . . . Crushed . | . . . . . . . Highest Temperature 479 | . 15 . . . 479 113 Average Temperature 135 | . 12 . . . 198 27 Received Heat Transfer 708 | . . . 12 9 273 414 Effects 4 | . . . . . 4 . Shutdowns 1 | . . . . . 1 . Energy Bleed 2 | . . . . . 2 . Matter Decay 1 | . . . . . 1 . Siege Activations . | . . . . . . . Martial Activations . | . . . . . . . Shielding Activations . | . . . . . . . Robots Disrupted . | . . . . . . . Combat Hostiles . | . . . . . . . Robots Corrupted 17 | . . . 1 3 6 7 Combat Hostiles 12 | . . . 1 1 4 6 Parts Fried 21 | . . . . 2 11 8 Impact Corruptions 43 | . . . 1 10 20 12 Robots Melted . | . . . . . . . Combat Hostiles . | . . . . . . . Parts Melted . | . . . . . . . Heat Transferred 50 | . 50 . . . . . Parts Sabotaged . | . . . . . . . Parts Stolen . | . . . . . . . Parts Stripped . | . . . . . . . Power Chain Reactions 1 | . 1 . . . . . Alert | -11 -10 -10 -9 -8 -7 -7 ------- Run | Yrd Mat Min Mat Mat Fac Sto Maximum Alert Level 2 | . . . . 1 1 2 Low Security (%) 56 | 100 100 100 100 96 57 13 Level 1 41 | . . . . 3 42 80 Level 2 1 | . . . . . . 5 Level 3 . | . . . . . . . Level 4 . | . . . . . . . Level 5 . | . . . . . . . High Security . | . . . . . . . Max Security . | . . . . . . . Peak Influence 453 | . 86 28 113 218 272 453 Initial 120 | . . 28 6 47 98 120 Average 182 | . 45 24 36 101 186 293 Influence Increases 1583 | . 125 . 133 261 479 585 Destroy 0b10 Robot/C 720 | . 60 . 40 100 180 340 Destroy 0b10 Robot/NC 80 | . . . . 15 45 20 Destroy Leader 232 | . 10 . 10 26 68 118 Successful Hack 109 | . 37 . 38 . 34 . Disable Machine 30 | . 15 . . . . 15 Destroy Structure 7 | . 3 . . . 2 2 Partial Spotted 120 | . . . . . 75 45 Lose Combat Pursuer 285 | . . . 45 120 75 45 Influence Decreases 1130 | . 50 57 38 156 432 397 Entered New Map 390 | . . 47 12 66 120 145 Time Decay 700 | . 50 10 26 90 302 222 Lost Part 40 | . . . . . 10 30 Squads Dispatched 12 | . . . 1 1 4 6 Investigation 1 | . . . . . 1 . Extermination 3 | . . . . . 2 1 Reinforcement 5 | . . . 1 1 1 2 Assault . | . . . . . . . Garrison 3 | . . . . . . 3 Intercept . | . . . . . . . Searches Triggered . | . . . . . . . Construction Impeded . | . . . . . . . Haulers Reinforced 2 | . . . . . 1 1 Active Scanning Responses . | . . . . . . . Cargo Convoy Interrupts . | . . . . . . . Stealth | -11 -10 -10 -9 -8 -7 -7 --------- Run | Yrd Mat Min Mat Mat Fac Sto Distress Signals 8 | . . . 2 1 . 5 Communications Jammed . | . . . . . . . Distress Signals . | . . . . . . . Times Spotted 79 | . 5 3 7 18 18 28 Peak Tracking Total 11 | . 4 3 6 11 5 8 Tactical Retreats 6 | . . . 1 2 1 2 Traps | -11 -10 -10 -9 -8 -7 -7 ------- Run | Yrd Mat Min Mat Mat Fac Sto Traps Triggered 3 | . 1 . . . . 2 Indirectly . | . . . . . . . Trap Hack Attempts . | . . . . . . . Triggered . | . . . . . . . Disarmed . | . . . . . . . Reprogrammed . | . . . . . . . Reused . | . . . . . . . Traps Extracted . | . . . . . . . Installed . | . . . . . . . Triggered . | . . . . . . . Machines | -11 -10 -10 -9 -8 -7 -7 ---------- Run | Yrd Mat Min Mat Mat Fac Sto Machines Disabled 2 | . 1 . . . . 1 Max in Single Turn 1 | . 1 . . . . 1 Garrison Access 2 | . . . . 1 . 1 Machines Repaired . | . . . . . . . Machines Dismantled . | . . . . . . . Machines Sabotaged . | . . . . . . . Overloaded Fab Kills . | . . . . . . . Hacking | -11 -10 -10 -9 -8 -7 -7 --------- Run | Yrd Mat Min Mat Mat Fac Sto Machines Accessed 26 | . 5 . 3 2 11 5 Terminals 21 | . 5 . 3 . 9 4 Fabricators . | . . . . . . . Repair Stations . | . . . . . . . Recycling Units . | . . . . . . . Scanalyzers 2 | . . . . 1 1 . Garrison Access 3 | . . . . 1 1 1 Total Hacks 92 | . 21 . 15 5 29 22 Successful 48 | . 13 . 8 2 11 14 Failed 42 | . 7 . 7 2 18 8 Catastrophic 7 | . . . 1 . 4 2 Database Lockouts 2 | . 1 . . 1 . . Manual 50 | . 13 . 14 . 11 12 Terminals 81 | . 21 . 15 . 25 20 Fabricators . | . . . . . . . Repair Stations . | . . . . . . . Recycling Units . | . . . . . . . Scanalyzers 4 | . . . . 2 2 . Garrison Access 7 | . . . . 3 2 2 Terminal Hacks 23 | . 9 . 2 . 4 8 Prototype ID Bank 7 | . 3 . 1 . . 3 Open Door 1 | . . . . . . 1 Branch Access Points 3 | . 1 . . . 1 1 Emergency Access Points 1 | . . . . . . 1 Terminal Index 2 | . 1 . . . 1 . Recall Investigation 1 | . . . . . . 1 Recall Extermination 1 | . . . . . 1 . Hauler Manifests 2 | . 2 . . . . . Registered Components 1 | . . . . . 1 . Zone Layout 4 | . 2 . 1 . . 1 Fabricator Hacks . | . . . . . . . Repair Station Hacks . | . . . . . . . Recycling Unit Hacks . | . . . . . . . Scanalyzer 3 | . . . . 1 2 . Retrieve Study 3 | . . . . 1 2 . Garrison Access Hacks 2 | . . . . 1 . 1 Seal Access 2 | . . . . 1 . 1 Unauthorized Hacks 20 | . 4 . 6 . 5 5 Terminals 20 | . 4 . 6 . 5 5 Track 6 | . . . 2 . 2 2 Botnet 11 | . 3 . 3 . 3 2 Disrupt 2 | . 1 . . . . 1 Operators 1 | . . . 1 . . . Fabricators . | . . . . . . . Repair Stations . | . . . . . . . Recycling Units . | . . . . . . . Scanalyzers . | . . . . . . . Garrison Access . | . . . . . . . Data Cores Recovered . | . . . . . . . Used . | . . . . . . . Hacking Detections 23 | . 5 . 3 2 10 3 Full Trace Events 2 | . . . 1 . 1 . Feedback Events . | . . . . . . . Feedback Blocked . | . . . . . . . Robot Schematics Acquired . | . . . . . . . Robots Built . | . . . . . . . Authchips . | . . . . . . . Time . | . . . . . . . Total Robot Build Rating . | . . . . . . . Part Schematics Acquired . | . . . . . . . Parts Built . | . . . . . . . Authchips . | . . . . . . . Time . | . . . . . . . Total Part Build Rating . | . . . . . . . Part Studies Acquired 3 | . . . . 1 2 . Parts Repaired . | . . . . . . . Time . | . . . . . . . Parts Recycled . | . . . . . . . Recycled Matter . | . . . . . . . Retrieved Matter . | . . . . . . . Retrieved Components . | . . . . . . . Parts Scanalyzed . | . . . . . . . Part Schematics Acquired . | . . . . . . . Parts Damaged . | . . . . . . . Bothacking | -11 -10 -10 -9 -8 -7 -7 ------------ Run | Yrd Mat Min Mat Mat Fac Sto Used RIF Installer . | . . . . . . . Robots Hacked . | . . . . . . . Non-combat . | . . . . . . . Combat . | . . . . . . . Robot Hacks Applied . | . . . . . . . Relay Couplers Released . | . . . . . . . Fabnet Peak Effective % . | . . . . . . . Robots Rewired . | . . . . . . . Allies Hacked . | . . . . . . . Hacks Repelled . | . . . . . . . Allies | -11 -10 -10 -9 -8 -7 -7 -------- Run | Yrd Mat Min Mat Mat Fac Sto Total Allies . | . . . . . . . Largest Group . | . . . . . . . Highest-Rated Group . | . . . . . . . Highest-Rated Ally . | . . . . . . . Total Orders . | . . . . . . . Ally Attacks . | . . . . . . . Total Damage . | . . . . . . . Kills . | . . . . . . . Allies Corrupted . | . . . . . . . Allies Melted . | . . . . . . . Intel | -11 -10 -10 -9 -8 -7 -7 ------- Run | Yrd Mat Min Mat Mat Fac Sto Active Infowar (turns) . | . . . . . . . Robot Analysis Total . | . . . . . . . Derelict Logs Recovered . | . . . . . . . Drone Launches . | . . . . . . . Drone Recoveries . | . . . . . . . Exploration | -11 -10 -10 -9 -8 -7 -7 ------------- Run | Yrd Mat Min Mat Mat Fac Sto Turns Passed 1619 | 12 148 31 77 199 679 473 Spaces Moved 2728 | 25 279 84 168 395 1325 452 Core 137 | 25 110 . . . . 2 Treads . | . . . . . . . Legs . | . . . . . . . Wheels . | . . . . . . . Hover 140 | . . . . . . 140 Flight 2451 | . 169 84 168 395 1325 310 Fastest Speed 34 | 50 37 37 34 34 37 37 Average Speed 38 | 50 43 37 34 34 37 44 Slowest Speed 120 | 50 120 37 37 37 40 100 Overloaded Moves . | . . . . . . . Propulsion Burnouts . | . . . . . . . Robots Hopped 8 | . . 1 . 1 4 2 Potential Cave-ins 2 | . . . . . . 2 Cave-ins Triggered . | . . . . . . . Exploration Rate (%) 34 | 3 52 26 23 34 30 70 Regions Visited 6 Branch Regions 2 Pre-discovered Areas 1 | . . . . . . 1 Known Exits Taken 2 | . 1 . . . 1 . Unknown Exits Taken 4 | 1 . 1 1 1 . . Scrap Searched . | . . . . . . . Spaces Dug 6 | . . . . . 2 4 Terrain Destroyed 9 | . 3 . . . 2 4 Melee 6 | . . . . . 2 4 Projectile . | . . . . . . . AOE 3 | . 3 . . . . . Terrain Rammed . | . . . . . . . Walls Destroyed . | . . . . . . . Machines Disabled . | . . . . . . . Actions | -11 -10 -10 -9 -8 -7 -7 --------- Run | Yrd Mat Min Mat Mat Fac Sto Total 3060 | 24 299 82 180 432 1423 620 Wait 85 | . 8 . . 13 22 42 Move 2708 | 24 278 81 167 392 1317 449 Hop 6 | . . 1 . 1 3 1 Pick Up . | . . . . . . . Fast Attach 25 | . 5 . 3 1 6 10 Attach . | . . . . . . . Detach . | . . . . . . . Swap 10 | . . . 2 3 4 1 Drop 17 | . . . 4 4 3 6 Fire 4 | . 4 . . . . . Melee 118 | . . . 3 14 45 56 Ram . | . . . . . . . Kick . | . . . . . . . Crush . | . . . . . . . Escape Stasis 15 | . . . . . . 15 Rewire . | . . . . . . . Trap . | . . . . . . . Miscellaneous 72 | . 4 . 1 4 23 40 Route ------- -11/Scrapyard -10/Materials (discovered 3 exits: *Mat x2 / *Min) -10/Mines -9/Materials -8/Materials -7/Factory (discovered 6 exits: [*Fac x2] / *Sto x2 / Low x2) -7/Storage (discovered 1 exit: Rec) History --------- Turn | Location | Event 5 | -11/Scrapyard | Discovered new exit (range 15) 13 | -11/Scrapyard | Entered Materials 86 | -10/Materials | Upgraded with Propulsion slot (x1) 100 | -10/Materials | Discovered new exit (range 8) 109 | -10/Materials | Upgraded with Weapon slot (x1) 138 | -10/Materials | Identified exit to Mines 138 | -10/Materials | Central database locked down 138 | -10/Materials | Discovered new exit (range 7) 161 | -10/Materials | Entered Mines 189 | -10/Mines | Discovered new exit (range 10) 192 | -10/Mines | Entered Materials 194 | -9/Materials | Reached level 2 264 | -9/Materials | Discovered new exit (range 10) 269 | -9/Materials | Entered another Materials area 271 | -8/Materials | Reached level 3 292 | -8/Materials | Reached level 4 376 | -8/Materials | Discovered new exit (range 14) 380 | -8/Materials | Central database locked down 468 | -8/Materials | Entered Factory 470 | -7/Factory | Reached level 5 508 | -7/Factory | Build established: Gladiator 607 | -7/Factory | Upgraded with Utility slot (x2) 749 | -7/Factory | Identified exit to Storage 749 | -7/Factory | Identified exit to Lower Caves 787 | -7/Factory | Upgraded with Utility slot (x1) 887 | -7/Factory | Discovered new exit (range 16) 937 | -7/Factory | Discovered new exit (range 7) 1000 | -7/Factory | Reached level 6 1001 | -7/Factory | Core integrity fell below 50% 1131 | -7/Factory | Build established: Hacker-Gladiator 1134 | -7/Factory | Upgraded with Weapon slot (x1) 1147 | -7/Factory | Entered Storage 1191 | -7/Storage | Identified exit to Recycling 1209 | -7/Storage | Reached level 7 1274 | -7/Storage | Garrison activated, responded to threat 1348 | -7/Storage | Upgraded with Utility slot (x1) 1379 | -7/Storage | Core integrity fell below 20% 1500 | -7/Storage | Reached level 8 1517 | -7/Storage | Learned location of Armory (-4) 1620 | -7/Storage | Destroyed by Y-54 Guardian with Gatling Laser Last Messages --------------- >>Open(Door) Sealed Heavy Doors opened. 01572_ W-25 Informer sends out distress signal. 01579_ System corrupted: Spear rejected. 01580_ Acquired Spear. 01586_ Connecting with Garrison Access... >>Seal Access door sealed. 01589_ Acquired 10 matter. 01593_ Spear follow-up attack on Y-54 Guardian. 01593_ Y-54 Guardian destroyed. 01598_ G-47 Trooper destroyed. 01602_ System corrupted: Energy discharge (-111). 01612_ Destroyed Gatling Laser. 01612_ Y-54 Guardian system corrupted by crushing effect. 01612_ Spear follow-up attack on Y-54 Guardian. 01613_ Y-54 Guardian system terminally corrupted. Map ----- +----------------------------------------------------+ | ??????###########??????#############???#? | | ????? #?????# #???? | | ????? """ """ #????## """ !* !#????? | | ??????""" """ #????# """ !* ?????#? | | ????????" """ #?????? """ *???????# | | ?????????? ?#######?? ?????????# | | ??????######+#### #####+############# | | ??????# | | ??????# " | | ??????# | | ??????########### ################### | | ????????????????## ###########??# | | ?????????????????# # """ """ #??# | | ?????????????????# # """ """ #### | | ?????????????????# # """ """ + + | | ?????????????????# # # ####### | | ?????????????????+ + # ##?###? | | ?????????????????# # [ # ### ## | | ?????????????????# # ! # + | | ?????????????????# # + # """ | | ?????????##??????# ###" "##### # """ | | ????????##[####### #?#"Y"#???# + """ | | ????????# [%!%% # #?#"""#???# # """ | | ????????# !!!%% # #?#####???# *# """ | | ????????# %%% # #?????????# %%# | | ????????# @# #?????????# # | | ????????# a %%Yg #????????## ###### | | ????????# *!#gw ########## k ##### | | ????????# # | | ????????# "" "" # T | | ????????# ""G"" # k | | ????????####################### ##### | | ?????????????????????????# ##?##u ##???? | | ?????????????????????????# "#### #????? | | ??????????????????########## # #????? | | ??????????????????########## # #???## | | ??????????????????##]]!!# # # #???# | | ???##########?????##]] # # #???# | | ?### #?????##]] # # ##??# | | ?#"" """ #?????## + # T#??# | | ?#"" """ #?????##]]] #T## # ##??# | | ?#"T [[""" #?????## #### # ##### | | ?#"" ! =![ #?????########## # #"T"#+ | | ?#"" ! """ #?????########## # | | ?### [""" #??????????????# # ^ | | ???# ! """ ##?????????????# # """ " | | ???# ! #?????????????# # "Y" " | | ???#####+#####?############# # " | | ?????# #????# # # | | ?????# ###### + # | +----------------------------------------------------+ Best States ------------- Heat Dissipation 25 Energy Generation 18 Energy Capacity 310 Matter Stores 300 Matter Capacity 300 Sight Range 16 Terrain Scan Density 10 Evasion (%) 63 Targeting Accuracy 5 Melee Accuracy 18 Core Analysis 6 Offensive Hacking 15 Defensive Hacking 15 Item Schematics ----------------- None Robot Schematics ------------------ None Fabricated ------------ Nothing Repaired ---------- Nothing Studied --------- Hvy. Hammer | -8/Materials | Hacked Great Axe | -7/Factory | Hacked Xenon Bombardment Thruster | -7/Factory | Hacked Alien Tech Used ----------------- None Achievements -------------- None Challenges ------------ None RPGLIKE | -11 -10 -10 -9 -8 -7 -7 --------- Run | Yrd Mat Min Mat Mat Fac Sto Levels Raised 7 | . . . 1 2 2 2 XP Earned 14177 | 3000 555 500 1860 2100 2820 3342 XP Spent 11000 | . 1800 . 2700 . 5100 1400 Upgrades 20 | . 5 . 7 . 7 1 Propulsion Slot 1 | . 1 . . . . . Utility Slot 4 | . . . . . 3 1 Weapon Slot 2 | . 1 . . . 1 . Mass Support 2 | . . . 2 . . . Melee Accuracy 5 | . . . 5 . . . Hack Attack % 3 | . 2 . . . 1 . Hack Defense % 3 | . 1 . . . 2 . Protomatter Created 567 | . 27 . 26 21 166 327 Integrity Restored 1504 | . 53 . 20 63 498 870 Core 1487 | . 36 . 20 63 498 870 Parts 17 | . 17 . . . . . Protomatter Decayed 8 | . 8 . . . . . Game ------ Seed MissileAntisysTracker Manual? 0 Play Time 00:28:43 Cumulative 176.4 hours Start 2026.02.15 @ 14:48:11 End 2026.02.15 @ 15:20:53 Sessions 1 Manual Loads 0 Difficulty Rogue Special Mode Winter2019/RPGLIKE Game No. 190 Rogue 190 Adventurer 0 Explorer 0 Win Type - Total 13 Types 11/0/0/1/0/0/1/0/0/0 Lore% 43 Gallery% 53 Achievement% 42 Wizard Run 0 Options --------- Layout 2 ASCII 0 Keyboard 0 Movement Numpad Keybinds 0 Fullscreen 1 Font 24/Smallcaps Map View 50x44 Zoom Use 0% Tactical HUD 1 Map Filters NONE Filters NONE Steam 1 RUN: 4fc228bd-8360-4002-a4a8-d8c009b589a7